[Event "*** SCC Grand Prix: Titled Tuesday Blitz"]
[Site "Chess.com"]
[Date "2020.07.14"]
[Round "10"]
[White "TheNextLevelFan"]
[Black "Khazieva_Elza"]
[Result "0-1"]
[WhiteElo "2503"]
[BlackElo "2345"]
[TimeControl "180+1"]
[EndTime "12:00:18 PDT"]
[Termination "Khazieva_Elza won by resignation"]

1. d4 {[%clk 0:03:00.9]} 1... Nf6 {[%clk 0:02:59.9]} 2. c4 {[%clk 0:02:59.7]}
2... d6 {[%clk 0:03:00.1]} 3. Nc3 {[%clk 0:02:58.2]} 3... Bf5 {[%clk 0:03:00.6]}
4. f3 {[%clk 0:02:58.1]} 4... e5 {[%clk 0:03:00.4]} 5. e4 {[%clk 0:02:56]} 5...
exd4 {[%clk 0:03:00.5]} 6. Qxd4 {[%clk 0:02:56.9]} 6... Nc6 {[%clk 0:02:57.8]}
7. Qf2 {[%clk 0:02:56.8]} 7... Be6 {[%clk 0:02:58.5]} 8. b3 {[%clk 0:02:54.7]}
8... Be7 {[%clk 0:02:58.8]} 9. Bb2 {[%clk 0:02:52.8]} 9... O-O {[%clk
0:02:51.9]} 10. Bd3 {[%clk 0:02:52.7]} 10... Nd7 {[%clk 0:02:51]} 11. Nge2
{[%clk 0:02:52.7]} 11... Nc5 {[%clk 0:02:40]} 12. Bb1 {[%clk 0:02:50.7]} 12...
Bf6 {[%clk 0:02:32.6]} 13. O-O {[%clk 0:02:47.1]} 13... a5 {[%clk 0:02:19.8]}
14. Rd1 {[%clk 0:02:46.4]} 14... a4 {[%clk 0:02:15]} 15. Bc2 {[%clk 0:00:39.9]}
15... a3 {[%clk 0:01:57]} 16. Bc1 {[%clk 0:00:39.1]} 16... Nb4 {[%clk 0:01:56]}
17. Nd4 {[%clk 0:00:38.4]} 17... Bxd4 {[%clk 0:01:22.4]} 18. Rxd4 {[%clk
0:00:37.7]} 18... Qf6 {[%clk 0:01:22.3]} 19. Be3 {[%clk 0:00:36.6]} 19... Nc6
{[%clk 0:01:17.6]} 20. Rad1 {[%clk 0:00:18.5]} 20... Nxd4 {[%clk 0:01:17.1]} 21.
Bxd4 {[%clk 0:00:19.4]} 21... Qe7 {[%clk 0:01:17]} 22. Qg3 {[%clk 0:00:19.9]}
22... f6 {[%clk 0:01:14.8]} 23. f4 {[%clk 0:00:20]} 23... Bf7 {[%clk 0:01:05.2]}
24. e5 {[%clk 0:00:18.1]} 24... Nd7 {[%clk 0:00:37.3]} 25. exd6 {[%clk
0:00:13.8]} 25... cxd6 {[%clk 0:00:33.2]} 26. Re1 {[%clk 0:00:13.7]} 26... Qd8
{[%clk 0:00:31.4]} 27. Qh4 {[%clk 0:00:14.3]} 27... Bg6 {[%clk 0:00:27.6]} 28.
f5 {[%clk 0:00:14.7]} 28... Bf7 {[%clk 0:00:26]} 29. Nd5 {[%clk 0:00:15.6]}
29... Bxd5 {[%clk 0:00:22.6]} 30. cxd5 {[%clk 0:00:16.5]} 30... Ne5 {[%clk
0:00:22.3]} 31. Re3 {[%clk 0:00:16]} 31... Rc8 {[%clk 0:00:19]} 32. Be4 {[%clk
0:00:15.3]} 32... Rc1+ {[%clk 0:00:16.6]} 33. Kf2 {[%clk 0:00:15.2]} 33... Qc8
{[%clk 0:00:16.6]} 34. Rh3 {[%clk 0:00:14.6]} 34... h6 {[%clk 0:00:16]} 35. Re3
{[%clk 0:00:13.8]} 35... Rc2+ {[%clk 0:00:12.2]} 36. Bxc2 {[%clk 0:00:13.1]}
36... Qxc2+ {[%clk 0:00:13.1]} 37. Kg3 {[%clk 0:00:13]} 37... Qxf5 {[%clk
0:00:11.2]} 38. Qh3 {[%clk 0:00:08.6]} 38... Qg5+ {[%clk 0:00:09.2]} 39. Kf2
{[%clk 0:00:08.4]} 39... Qf4+ {[%clk 0:00:09]} 40. Ke2 {[%clk 0:00:07.1]} 40...
Qxd4 {[%clk 0:00:08.9]} 41. Qe6+ {[%clk 0:00:07]} 41... Kh8 {[%clk 0:00:08.2]}
42. Qe7 {[%clk 0:00:06.9]} 42... Qb2+ {[%clk 0:00:07.2]} 43. Kf1 {[%clk
0:00:06.6]} 43... Rc8 {[%clk 0:00:06.3]} 44. Re1 {[%clk 0:00:07.1]} 44... Qxa2
{[%clk 0:00:04.7]} 45. Qe6 {[%clk 0:00:05.9]} 45... Rd8 {[%clk 0:00:04.6]} 46.
Qf5 {[%clk 0:00:06]} 46... Qxb3 {[%clk 0:00:04.4]} 47. Kg1 {[%clk 0:00:06.4]}
47... Qb6+ {[%clk 0:00:04.2]} 48. Kh1 {[%clk 0:00:06.1]} 48... a2 {[%clk
0:00:04.4]} 49. h3 {[%clk 0:00:05.9]} 49... Qb4 {[%clk 0:00:03.8]} 50. Rf1
{[%clk 0:00:05.5]} 50... Qc4 {[%clk 0:00:03.7]} 51. Qf2 {[%clk 0:00:04.6]} 51...
Qxd5 {[%clk 0:00:03.5]} 52. Rc1 {[%clk 0:00:04.7]} 52... Re8 {[%clk 0:00:03.4]}
53. Re1 {[%clk 0:00:04.1]} 53... Rf8 {[%clk 0:00:03.2]} 54. Qb2 {[%clk
0:00:03.9]} 54... Nd3 {[%clk 0:00:03.5]} 55. Qd2 {[%clk 0:00:03.1]} 55... Qc4
{[%clk 0:00:03.4]} 56. Rd1 {[%clk 0:00:02.9]} 56... Nb4 {[%clk 0:00:03]} 57. Rc1
{[%clk 0:00:03.1]} 57... Qb3 {[%clk 0:00:03]} 58. Rd1 {[%clk 0:00:03.5]} 58...
Qxd1+ {[%clk 0:00:02.7]} 59. Qxd1 {[%clk 0:00:03.6]} 59... Ra8 {[%clk
0:00:02.8]} 60. Qa1 {[%clk 0:00:03.6]} 60... Nc2 {[%clk 0:00:03.2]} 61. Qc3
{[%clk 0:00:04.3]} 61... a1=Q+ {[%clk 0:00:04.1]} 62. Qxa1 {[%clk 0:00:04.5]}
62... Nxa1 {[%clk 0:00:04.9]} 63. Kh2 {[%clk 0:00:05.4]} 63... Nb3 {[%clk
0:00:05.8]} 64. Kg3 {[%clk 0:00:06.3]} 64... d5 {[%clk 0:00:06.7]} 65. Kh4
{[%clk 0:00:07.2]} 65... d4 {[%clk 0:00:07.6]} 66. g4 {[%clk 0:00:08.1]} 66...
Rd8 {[%clk 0:00:08.2]} 67. Kh5 {[%clk 0:00:09]} 67... d3 {[%clk 0:00:08.2]} 68.
Kg6 {[%clk 0:00:09.9]} 68... d2 {[%clk 0:00:08.6]} 69. h4 {[%clk 0:00:10.8]}
69... d1=Q {[%clk 0:00:09]} 70. g5 {[%clk 0:00:11.7]} 70... Qd3+ {[%clk
0:00:09.4]} 71. Kh5 {[%clk 0:00:11.4]} 71... fxg5 {[%clk 0:00:09.6]} 72. hxg5
{[%clk 0:00:11.2]} 72... g6+ {[%clk 0:00:09.8]} 73. Kxh6 {[%clk 0:00:11.3]}
73... Qh3+ {[%clk 0:00:09.7]} 74. Kxg6 {[%clk 0:00:12.2]} 74... Rd6+ {[%clk
0:00:10.3]} 75. Kf7 {[%clk 0:00:11.8]} 75... Qe6+ {[%clk 0:00:10.4]} 0-1

[Event "*** SCC Grand Prix: Titled Tuesday Blitz"]
[Site "Chess.com"]
[Date "2020.07.14"]
[Round "10"]
[White "Siniauski"]
[Black "vaishali2001"]
[Result "1-0"]
[WhiteElo "2499"]
[BlackElo "2599"]
[TimeControl "180+1"]
[EndTime "12:00:21 PDT"]
[Termination "Siniauski won by resignation"]

1. e4 {[%clk 0:03:00.9]} 1... c5 {[%clk 0:02:58.9]} 2. Nf3 {[%clk 0:03:01.1]}
2... Nc6 {[%clk 0:02:58.4]} 3. Bb5 {[%clk 0:03:01.3]} 3... g6 {[%clk 0:02:58.1]}
4. Bxc6 {[%clk 0:03:01.3]} 4... bxc6 {[%clk 0:02:51.9]} 5. O-O {[%clk
0:02:59.9]} 5... Bg7 {[%clk 0:02:50]} 6. Re1 {[%clk 0:02:59]} 6... Nh6 {[%clk
0:02:48.1]} 7. c3 {[%clk 0:02:54]} 7... O-O {[%clk 0:02:47.7]} 8. h3 {[%clk
0:02:50.1]} 8... d5 {[%clk 0:02:25.5]} 9. d3 {[%clk 0:02:42.7]} 9... f6 {[%clk
0:02:18.7]} 10. c4 {[%clk 0:02:35.6]} 10... Nf7 {[%clk 0:02:09.4]} 11. Nc3
{[%clk 0:02:33.9]} 11... d4 {[%clk 0:02:02.8]} 12. Ne2 {[%clk 0:02:31.1]} 12...
e5 {[%clk 0:02:01.4]} 13. Ng3 {[%clk 0:02:29.1]} 13... Rb8 {[%clk 0:01:53]} 14.
b3 {[%clk 0:02:27.5]} 14... Qa5 {[%clk 0:01:45]} 15. Qd2 {[%clk 0:02:21.2]}
15... Qxd2 {[%clk 0:01:29.6]} 16. Nxd2 {[%clk 0:02:17]} 16... Nd8 {[%clk
0:01:30.5]} 17. Ne2 {[%clk 0:01:55.9]} 17... Ne6 {[%clk 0:01:25.1]} 18. g3
{[%clk 0:01:47.2]} 18... Rb7 {[%clk 0:01:09.8]} 19. Kg2 {[%clk 0:01:36.7]} 19...
Re7 {[%clk 0:00:55.5]} 20. a4 {[%clk 0:01:19.2]} 20... a5 {[%clk 0:00:50.8]} 21.
f4 {[%clk 0:00:51.4]} 21... exf4 {[%clk 0:00:37.9]} 22. gxf4 {[%clk 0:00:52.3]}
22... f5 {[%clk 0:00:34.5]} 23. e5 {[%clk 0:00:46]} 23... g5 {[%clk 0:00:29.9]}
24. Nf3 {[%clk 0:00:39.7]} 24... h6 {[%clk 0:00:18.1]} 25. Bd2 {[%clk
0:00:30.3]} 25... gxf4 {[%clk 0:00:12.6]} 26. Nxf4 {[%clk 0:00:31.2]} 26...
Nxf4+ {[%clk 0:00:11.8]} 27. Bxf4 {[%clk 0:00:32.1]} 27... Rb7 {[%clk
0:00:11.9]} 28. Rab1 {[%clk 0:00:26.9]} 28... Be6 {[%clk 0:00:12.8]} 29. Nd2
{[%clk 0:00:21.1]} 29... Rfb8 {[%clk 0:00:13]} 30. Kf3 {[%clk 0:00:20.6]} 30...
Kh7 {[%clk 0:00:13]} 31. Rg1 {[%clk 0:00:20.8]} 31... Bf7 {[%clk 0:00:10.2]} 32.
Rg2 {[%clk 0:00:17.5]} 32... Bh5+ {[%clk 0:00:07.3]} 33. Kf2 {[%clk 0:00:18]}
33... Re8 {[%clk 0:00:06.5]} 34. Re1 {[%clk 0:00:10]} 34... Rbe7 {[%clk
0:00:06.8]} 35. Nf1 {[%clk 0:00:01.8]} 35... Bxe5 {[%clk 0:00:06.9]} 36. Bxe5
{[%clk 0:00:02.2]} 36... Rxe5 {[%clk 0:00:07.8]} 37. Rxe5 {[%clk 0:00:03.1]}
37... Rxe5 {[%clk 0:00:08.5]} 38. Ng3 {[%clk 0:00:04]} 38... Bd1 {[%clk
0:00:07.1]} 39. Rg1 {[%clk 0:00:04]} 39... Bxb3 {[%clk 0:00:07.4]} 40. Ra1
{[%clk 0:00:02.6]} 40... Kg6 {[%clk 0:00:07.1]} 41. Ra3 {[%clk 0:00:02.1]} 41...
Bc2 {[%clk 0:00:07.1]} 42. Nf1 {[%clk 0:00:01.5]} 42... Kf6 {[%clk 0:00:07.1]}
43. Kf3 {[%clk 0:00:01.4]} 43... Bd1+ {[%clk 0:00:07.3]} 44. Kf2 {[%clk
0:00:01.8]} 44... Re2+ {[%clk 0:00:07.4]} 45. Kg3 {[%clk 0:00:02.3]} 45... Ke5
{[%clk 0:00:06.5]} 46. h4 {[%clk 0:00:02.2]} 46... f4+ {[%clk 0:00:06.4]} 47.
Kh3 {[%clk 0:00:02.4]} 47... Rf2 {[%clk 0:00:06.6]} 48. Nh2 {[%clk 0:00:02.1]}
48... Kf5 {[%clk 0:00:06.4]} 49. Ra1 {[%clk 0:00:02.1]} 49... Be2 {[%clk
0:00:05.9]} 50. Re1 {[%clk 0:00:02.3]} 50... h5 {[%clk 0:00:05.8]} 51. Rg1
{[%clk 0:00:01.7]} 51... Bxd3 {[%clk 0:00:04.5]} 52. Rg5+ {[%clk 0:00:01.8]}
52... Ke4 {[%clk 0:00:04.3]} 53. Rxh5 {[%clk 0:00:02.3]} 53... Ke3 {[%clk
0:00:04.5]} 54. Ng4+ {[%clk 0:00:02.2]} 54... Ke2 {[%clk 0:00:04.5]} 55. Nxf2
{[%clk 0:00:02.9]} 55... Kxf2 {[%clk 0:00:05.4]} 56. Rxc5 {[%clk 0:00:03.5]}
56... f3 {[%clk 0:00:04.3]} 57. Rxc6 {[%clk 0:00:03.6]} 57... Ke1 {[%clk
0:00:03.1]} 58. Re6+ {[%clk 0:00:03.5]} 58... Kd2 {[%clk 0:00:02.7]} 59. Kg3
{[%clk 0:00:02.9]} 59... Be2 {[%clk 0:00:02.3]} 60. Kf2 {[%clk 0:00:02.7]} 60...
d3 {[%clk 0:00:02.5]} 61. h5 {[%clk 0:00:02.7]} 61... Kc1 {[%clk 0:00:02.4]} 62.
Rd6 {[%clk 0:00:02.7]} 62... d2 {[%clk 0:00:02.8]} 63. h6 {[%clk 0:00:02.9]}
63... Kc2 {[%clk 0:00:02.3]} 64. Rxd2+ {[%clk 0:00:02.6]} 64... Kxd2 {[%clk
0:00:03.2]} 65. h7 {[%clk 0:00:03.5]} 65... Bxc4 {[%clk 0:00:03.5]} 66. h8=Q
{[%clk 0:00:04.4]} 66... Kc2 {[%clk 0:00:03.4]} 67. Qa1 {[%clk 0:00:04.5]} 67...
Kb3 {[%clk 0:00:03.5]} 68. Kxf3 {[%clk 0:00:04.5]} 1-0

[Event "*** SCC Grand Prix: Titled Tuesday Blitz"]
[Site "Chess.com"]
[Date "2020.07.14"]
[Round "10"]
[White "GiantThresher"]
[Black "vova-79"]
[Result "1-0"]
[WhiteElo "2648"]
[BlackElo "2485"]
[TimeControl "180+1"]
[EndTime "12:00:25 PDT"]
[Termination "GiantThresher won on time"]

1. e4 {[%clk 0:03:00.9]} 1... e6 {[%clk 0:02:59.4]} 2. d4 {[%clk 0:02:57.3]}
2... d5 {[%clk 0:02:58.5]} 3. Bd3 {[%clk 0:02:57]} 3... c5 {[%clk 0:02:57]} 4.
exd5 {[%clk 0:02:56.8]} 4... exd5 {[%clk 0:02:56.6]} 5. Nf3 {[%clk 0:02:56.4]}
5... c4 {[%clk 0:02:55.6]} 6. Be2 {[%clk 0:02:56.7]} 6... Nc6 {[%clk 0:02:55.5]}
7. O-O {[%clk 0:02:57.2]} 7... Bd6 {[%clk 0:02:55.8]} 8. b3 {[%clk 0:02:56.9]}
8... cxb3 {[%clk 0:02:55.2]} 9. axb3 {[%clk 0:02:57.8]} 9... Nge7 {[%clk
0:02:55.1]} 10. Ba3 {[%clk 0:02:56.3]} 10... O-O {[%clk 0:02:53.1]} 11. Bd3
{[%clk 0:02:38.2]} 11... Bf5 {[%clk 0:02:40.6]} 12. c3 {[%clk 0:02:37.1]} 12...
a6 {[%clk 0:02:35.9]} 13. h3 {[%clk 0:02:34.3]} 13... Re8 {[%clk 0:02:28.7]} 14.
Re1 {[%clk 0:02:34.1]} 14... Bxa3 {[%clk 0:02:19.6]} 15. Rxa3 {[%clk 0:02:29.4]}
15... Qd6 {[%clk 0:02:19.4]} 16. Ra2 {[%clk 0:02:29.3]} 16... Bxd3 {[%clk
0:02:13.1]} 17. Qxd3 {[%clk 0:02:30.2]} 17... Ng6 {[%clk 0:02:13.1]} 18. Rae2
{[%clk 0:02:21.2]} 18... Kf8 {[%clk 0:01:54.6]} 19. g3 {[%clk 0:02:17.4]} 19...
Rxe2 {[%clk 0:01:50.4]} 20. Qxe2 {[%clk 0:02:18.3]} 20... Qd7 {[%clk 0:01:47.5]}
21. h4 {[%clk 0:02:07.5]} 21... Re8 {[%clk 0:01:44.5]} 22. Qxe8+ {[%clk
0:02:07.1]} 22... Qxe8 {[%clk 0:01:44.2]} 23. Rxe8+ {[%clk 0:02:08]} 23... Kxe8
{[%clk 0:01:44.5]} 24. h5 {[%clk 0:02:08.9]} 24... Nge7 {[%clk 0:01:40.4]} 25.
g4 {[%clk 0:02:06.1]} 25... f6 {[%clk 0:01:39]} 26. Kg2 {[%clk 0:02:05.7]} 26...
g6 {[%clk 0:01:36.7]} 27. Kg3 {[%clk 0:02:02.8]} 27... Kf7 {[%clk 0:01:32.7]}
28. Nbd2 {[%clk 0:02:00.8]} 28... b6 {[%clk 0:01:28.4]} 29. Kf4 {[%clk
0:01:51.5]} 29... g5+ {[%clk 0:01:20.7]} 30. Ke3 {[%clk 0:01:51.1]} 30... h6
{[%clk 0:01:20.4]} 31. Ne1 {[%clk 0:01:41.9]} 31... f5 {[%clk 0:01:19.2]} 32. f3
{[%clk 0:01:42.3]} 32... Ke6 {[%clk 0:01:14.9]} 33. Nc2 {[%clk 0:01:39.5]} 33...
a5 {[%clk 0:00:51.1]} 34. c4 {[%clk 0:01:36.5]} 34... Nd8 {[%clk 0:00:27.2]} 35.
Na3 {[%clk 0:01:33]} 35... Nb7 {[%clk 0:00:19.5]} 36. Nb5 {[%clk 0:01:30.1]}
36... fxg4 {[%clk 0:00:19.3]} 37. fxg4 {[%clk 0:01:29.8]} 37... Nd6 {[%clk
0:00:17.4]} 38. Nc7+ {[%clk 0:01:02.3]} 38... Kd7 {[%clk 0:00:17.4]} 39. Nxd5
{[%clk 0:01:02.9]} 39... Nxd5+ {[%clk 0:00:17.6]} 40. cxd5 {[%clk 0:01:03.8]}
40... b5 {[%clk 0:00:17.9]} 41. Nf3 {[%clk 0:01:03.2]} 41... Ke7 {[%clk
0:00:16.5]} 42. Ne5 {[%clk 0:01:01.4]} 42... a4 {[%clk 0:00:16.7]} 43. bxa4
{[%clk 0:01:01.8]} 43... bxa4 {[%clk 0:00:16.8]} 44. Kd3 {[%clk 0:01:02.7]}
44... a3 {[%clk 0:00:15.7]} 45. Kc2 {[%clk 0:00:51.3]} 45... Nb5 {[%clk
0:00:14.9]} 46. Kb3 {[%clk 0:00:46.7]} 46... Nxd4+ {[%clk 0:00:14.7]} 47. Kxa3
{[%clk 0:00:47]} 47... Kd6 {[%clk 0:00:14.6]} 48. Nf7+ {[%clk 0:00:47]} 48...
Kxd5 {[%clk 0:00:14.6]} 49. Nxh6 {[%clk 0:00:47.9]} 49... Ke5 {[%clk 0:00:14.1]}
50. Kb4 {[%clk 0:00:35.1]} 50... Kf6 {[%clk 0:00:13.2]} 51. Kc4 {[%clk
0:00:35.2]} 51... Ne2 {[%clk 0:00:12.6]} 52. Kd3 {[%clk 0:00:28.7]} 52... Nf4+
{[%clk 0:00:12.3]} 53. Ke4 {[%clk 0:00:28.7]} 53... Ne6 {[%clk 0:00:12.4]} 54.
Nf5 {[%clk 0:00:27.5]} 54... Nc5+ {[%clk 0:00:12.3]} 55. Kf3 {[%clk 0:00:27.8]}
55... Ne6 {[%clk 0:00:12.2]} 56. Ng3 {[%clk 0:00:23.1]} 56... Kg7 {[%clk
0:00:10]} 57. Ne4 {[%clk 0:00:23.1]} 57... Kh6 {[%clk 0:00:09.9]} 58. Nd6 {[%clk
0:00:23.1]} 58... Nd4+ {[%clk 0:00:09.2]} 59. Ke3 {[%clk 0:00:23.4]} 59... Ne6
{[%clk 0:00:09]} 60. Nf5+ {[%clk 0:00:23.6]} 60... Kh7 {[%clk 0:00:09.4]} 61.
Ke4 {[%clk 0:00:24.5]} 61... Nf4 {[%clk 0:00:08.8]} 62. Nd6 {[%clk 0:00:22.8]}
62... Nh3 {[%clk 0:00:07.2]} 63. Kf5 {[%clk 0:00:22.9]} 63... Kg7 {[%clk
0:00:07.2]} 64. Ne4 {[%clk 0:00:21.8]} 64... Kh6 {[%clk 0:00:07.3]} 65. Kf6
{[%clk 0:00:21.5]} 65... Nf4 {[%clk 0:00:05.6]} 66. Kf5 {[%clk 0:00:19.8]} 66...
Nh3 {[%clk 0:00:04.8]} 67. Kf6 {[%clk 0:00:13.6]} 67... Nf4 {[%clk 0:00:04.3]}
68. Nxg5 {[%clk 0:00:14.2]} 68... Nd5+ {[%clk 0:00:04.2]} 69. Kf5 {[%clk
0:00:14.5]} 69... Ne7+ {[%clk 0:00:03.1]} 70. Ke6 {[%clk 0:00:14.7]} 70... Nc6
{[%clk 0:00:02]} 71. Nf3 {[%clk 0:00:14.7]} 71... Nb4 {[%clk 0:00:01.2]} 72. Kf5
{[%clk 0:00:14.3]} 72... Nd3 {[%clk 0:00:01.3]} 73. Ke4 {[%clk 0:00:13.7]} 73...
Nf2+ {[%clk 0:00:01.2]} 74. Kf4 {[%clk 0:00:14.1]} 74... Nh3+ {[%clk 0:00:01.3]}
75. Kg3 {[%clk 0:00:14.3]} 75... Ng5 {[%clk 0:00:01.2]} 76. Nxg5 {[%clk
0:00:14.9]} 76... Kxg5 {[%clk 0:00:02.1]} 77. Kh3 {[%clk 0:00:15.8]} 1-0

[Event "*** SCC Grand Prix: Titled Tuesday Blitz"]
[Site "Chess.com"]
[Date "2020.07.14"]
[Round "10"]
[White "sorito"]
[Black "nocnypako"]
[Result "1/2-1/2"]
[WhiteElo "2471"]
[BlackElo "2592"]
[TimeControl "180+1"]
[EndTime "12:00:29 PDT"]
[Termination "Game drawn - insufficient material"]

1. Nf3 {[%clk 0:03:00]} 1... Nf6 {[%clk 0:02:57.8]} 2. g3 {[%clk 0:02:59.7]}
2... g6 {[%clk 0:02:58.7]} 3. Bg2 {[%clk 0:03:00.2]} 3... Bg7 {[%clk 0:02:58]}
4. O-O {[%clk 0:03:01.1]} 4... O-O {[%clk 0:02:58]} 5. c4 {[%clk 0:03:01.1]}
5... d5 {[%clk 0:02:55.9]} 6. cxd5 {[%clk 0:03:00.4]} 6... Nxd5 {[%clk
0:02:56.8]} 7. Nc3 {[%clk 0:02:59.4]} 7... Nc6 {[%clk 0:02:55.1]} 8. d4 {[%clk
0:02:58.2]} 8... Nxc3 {[%clk 0:02:54.9]} 9. bxc3 {[%clk 0:02:58.1]} 9... e5
{[%clk 0:02:55.6]} 10. e3 {[%clk 0:02:57]} 10... exd4 {[%clk 0:02:53.9]} 11.
cxd4 {[%clk 0:02:55.3]} 11... Rb8 {[%clk 0:02:53.5]} 12. Ba3 {[%clk 0:02:54.7]}
12... Re8 {[%clk 0:02:52.4]} 13. Rc1 {[%clk 0:02:47.3]} 13... Bd7 {[%clk
0:02:50.6]} 14. Qd2 {[%clk 0:02:41.4]} 14... Ne7 {[%clk 0:02:47.8]} 15. Qa5
{[%clk 0:02:30]} 15... Bc6 {[%clk 0:02:47.9]} 16. Ne5 {[%clk 0:02:11.5]} 16...
Bxg2 {[%clk 0:02:41.7]} 17. Kxg2 {[%clk 0:02:12.4]} 17... Bxe5 {[%clk
0:02:41.7]} 18. Qxe5 {[%clk 0:02:06.6]} 18... Qd5+ {[%clk 0:02:35.2]} 19. Qxd5
{[%clk 0:02:06]} 19... Nxd5 {[%clk 0:02:36.1]} 20. Rb1 {[%clk 0:01:56.3]} 20...
f5 {[%clk 0:02:34.2]} 21. Rfc1 {[%clk 0:01:56]} 21... c6 {[%clk 0:02:33.6]} 22.
Bd6 {[%clk 0:01:55.1]} 22... Rbd8 {[%clk 0:02:31.9]} 23. Be5 {[%clk 0:01:55.7]}
23... Rd7 {[%clk 0:02:29.8]} 24. Rb3 {[%clk 0:01:55.5]} 24... Kf7 {[%clk
0:02:27.7]} 25. a4 {[%clk 0:01:55.5]} 25... Ke6 {[%clk 0:02:25]} 26. f3 {[%clk
0:01:55.6]} 26... Ree7 {[%clk 0:02:22.2]} 27. a5 {[%clk 0:01:52.6]} 27... Nf6
{[%clk 0:02:20.7]} 28. a6 {[%clk 0:01:49.1]} 28... Nd5 {[%clk 0:02:09.6]} 29.
axb7 {[%clk 0:01:46.5]} 29... Rxb7 {[%clk 0:02:10.5]} 30. Rxc6+ {[%clk
0:01:45.8]} 30... Kf7 {[%clk 0:02:09.1]} 31. Rxb7 {[%clk 0:01:34]} 31... Rxb7
{[%clk 0:02:10]} 32. e4 {[%clk 0:01:34.4]} 32... fxe4 {[%clk 0:01:47.1]} 33.
fxe4 {[%clk 0:01:34.1]} 33... Ne7 {[%clk 0:01:47.2]} 34. Rf6+ {[%clk 0:01:32.7]}
34... Ke8 {[%clk 0:01:47.3]} 35. Ra6 {[%clk 0:01:33.6]} 35... Kd7 {[%clk
0:01:45.6]} 36. d5 {[%clk 0:01:31]} 36... Nc8 {[%clk 0:01:45.7]} 37. Bd4 {[%clk
0:01:26.2]} 37... Rb4 {[%clk 0:01:42.9]} 38. Bxa7 {[%clk 0:01:14.6]} 38... Rxe4
{[%clk 0:01:41.9]} 39. Bb8 {[%clk 0:00:41]} 39... Rd4 {[%clk 0:01:27.5]} 40. Rf6
{[%clk 0:00:40.6]} 40... Rxd5 {[%clk 0:01:21.2]} 41. Rf7+ {[%clk 0:00:40.3]}
41... Ke6 {[%clk 0:01:21.7]} 42. Rxh7 {[%clk 0:00:39.5]} 42... Rd2+ {[%clk
0:01:21.3]} 43. Kh3 {[%clk 0:00:39.4]} 43... Ne7 {[%clk 0:01:21.3]} 44. Ba7
{[%clk 0:00:35.8]} 44... Rd8 {[%clk 0:01:07.6]} 45. Bc5 {[%clk 0:00:26.6]} 45...
Nf5 {[%clk 0:01:07.5]} 46. Ra7 {[%clk 0:00:16.9]} 46... Rc8 {[%clk 0:01:06.9]}
47. Ra6+ {[%clk 0:00:17.1]} 47... Kf7 {[%clk 0:01:06.4]} 48. Bf2 {[%clk
0:00:18]} 48... Rc2 {[%clk 0:01:05]} 49. Kg2 {[%clk 0:00:18.1]} 49... Rb2 {[%clk
0:01:02.3]} 50. Ra3 {[%clk 0:00:16.7]} 50... g5 {[%clk 0:00:54]} 51. g4 {[%clk
0:00:17.1]} 51... Nh4+ {[%clk 0:00:49.3]} 52. Kh3 {[%clk 0:00:17]} 52... Ng6
{[%clk 0:00:48.3]} 53. Bg3 {[%clk 0:00:17.4]} 53... Rc2 {[%clk 0:00:44.5]} 54.
Ra7+ {[%clk 0:00:17.6]} 54... Kf6 {[%clk 0:00:43.9]} 55. Ra6+ {[%clk 0:00:18.1]}
55... Kg7 {[%clk 0:00:43.9]} 56. Ra5 {[%clk 0:00:18.7]} 56... Kh6 {[%clk
0:00:41.2]} 57. Ra6 {[%clk 0:00:14.8]} 57... Rb2 {[%clk 0:00:39.2]} 58. Bd6
{[%clk 0:00:14.8]} 58... Kh7 {[%clk 0:00:34.9]} 59. Ra7+ {[%clk 0:00:11]} 59...
Kh6 {[%clk 0:00:34]} 60. Ra6 {[%clk 0:00:11.6]} 60... Kh7 {[%clk 0:00:33.9]} 61.
Kg3 {[%clk 0:00:12.2]} 61... Rb3+ {[%clk 0:00:33.4]} 62. Kg2 {[%clk 0:00:11.5]}
62... Nh4+ {[%clk 0:00:31.2]} 63. Kf2 {[%clk 0:00:11.8]} 63... Rf3+ {[%clk
0:00:30]} 64. Ke2 {[%clk 0:00:11.6]} 64... Rf6 {[%clk 0:00:29.7]} 65. Rb6 {[%clk
0:00:10.4]} 65... Kg6 {[%clk 0:00:23.9]} 66. h3 {[%clk 0:00:10.8]} 66... Nf3
{[%clk 0:00:22.1]} 67. Bc5 {[%clk 0:00:10.7]} 67... Rxb6 {[%clk 0:00:19.6]} 68.
Bxb6 {[%clk 0:00:11.6]} 68... Ne5 {[%clk 0:00:19.5]} 69. Ke3 {[%clk 0:00:11.5]}
69... Nc4+ {[%clk 0:00:19.5]} 70. Kf3 {[%clk 0:00:12.1]} 70... Nxb6 {[%clk
0:00:18.7]} 71. Kg3 {[%clk 0:00:13]} 71... Nc4 {[%clk 0:00:16.8]} 72. h4 {[%clk
0:00:13.9]} 72... Nd2 {[%clk 0:00:16.4]} 73. hxg5 {[%clk 0:00:14.1]} 73... Kxg5
{[%clk 0:00:17.3]} 74. Kh3 {[%clk 0:00:14.1]} 74... Nc4 {[%clk 0:00:18.2]} 75.
Kg3 {[%clk 0:00:14.6]} 75... Nb6 {[%clk 0:00:19.1]} 76. Kh3 {[%clk 0:00:15.5]}
76... Na8 {[%clk 0:00:20]} 77. Kg3 {[%clk 0:00:16.3]} 77... Nb6 {[%clk
0:00:20.5]} 78. Kh3 {[%clk 0:00:17.2]} 78... Na4 {[%clk 0:00:21.4]} 79. Kg3
{[%clk 0:00:18.1]} 79... Nb2 {[%clk 0:00:22]} 80. Kh3 {[%clk 0:00:19]} 80... Nd1
{[%clk 0:00:22.7]} 81. Kg3 {[%clk 0:00:19.9]} 81... Ne3 {[%clk 0:00:23.4]} 82.
Kh3 {[%clk 0:00:20.8]} 82... Nf1 {[%clk 0:00:24]} 83. Kg2 {[%clk 0:00:20.9]}
83... Nd2 {[%clk 0:00:24.9]} 84. Kh3 {[%clk 0:00:21.8]} 84... Ne4 {[%clk
0:00:25.5]} 85. Kg2 {[%clk 0:00:22.7]} 85... Nf6 {[%clk 0:00:26.4]} 86. Kh3
{[%clk 0:00:23.6]} 86... Nh7 {[%clk 0:00:27.1]} 87. Kg2 {[%clk 0:00:24.5]} 87...
Nf8 {[%clk 0:00:27.5]} 88. Kh3 {[%clk 0:00:25.4]} 88... Ne6 {[%clk 0:00:28.4]}
89. Kg2 {[%clk 0:00:26.3]} 89... Nd4 {[%clk 0:00:29.3]} 90. Kh3 {[%clk
0:00:27.2]} 90... Ne2 {[%clk 0:00:30.2]} 91. Kg2 {[%clk 0:00:28]} 91... Nf4+
{[%clk 0:00:31.1]} 92. Kg3 {[%clk 0:00:28.2]} 92... Nh5+ {[%clk 0:00:32]} 93.
Kh2 {[%clk 0:00:29.1]} 93... Kh6 {[%clk 0:00:31.8]} 94. gxh5 {[%clk 0:00:29.5]}
94... Kg5 {[%clk 0:00:31.8]} 95. h6 {[%clk 0:00:28.9]} 95... Kxh6 {[%clk
0:00:31.8]} 1/2-1/2